fUSD/lending_fUSD_20240327
["ID","MTS","AMOUNT","RATE_DAILY","PERIOD"]
[320789365,1711558232747,-1000.0,0.00038904,120]
[320789366,1711558232757,-1450.58397,0.00038951,2]
[320789367,1711558232766,-818.58445584,0.00038995,120]
[320789368,1711558232775,-194.73994527,0.00038996,4]
[320789369,1711558232785,-776.0,0.00039,2]
[320789370,1711558232796,-550.0,0.00039,3]
[320789371,1711558232805,-2430.72541709,0.00039095,4]
[320789372,1711558232816,-1606.80310848,0.00039095,4]
[320789373,1711558232825,-384.33356235,0.00039097,9]
[320789374,1711558232834,-8181.03361627,0.00039097,2]
[320789375,1711558232843,-8221.84734344,0.00039097,2]
[320789376,1711558232852,-17875.0817,0.00039097,2]
[320789377,1711558232861,-1152.8504,0.00039097,2]
[320789378,1711558232871,-2500.0,0.00039097,2]
[320789379,1711558232880,-1000.0,0.00039097,2]
[320789380,1711558232890,-410.59029322,0.000391,11]
[320789381,1711558232899,-397.90385632,0.00039189,4]
[320789382,1711558232909,-282.989,0.0003919,10]
[320789383,1711558232918,-245000.0,0.00039197,2]
[320789384,1711558232928,-100000.0,0.00039197,2]
[320789385,1711558232938,-302.01682562,0.00039198,2]
[320789386,1711558232947,-165.93371296,0.000392,2]
[320789387,1711558232957,-3735.8087,0.000392,2]
[320789388,1711558232966,-212.0,0.000392,2]
[320789389,1711558232975,-9638.6367,0.000392,2]
[320789390,1711558232984,-500.0,0.000392,2]
[320789391,1711558232993,-1000.0,0.000392,2]
[320789392,1711558233003,-8432.16717946,0.000392,12]
[320789393,1711558233011,-174.55260403,0.000392,2]
[320789394,1711558233162,-152.67445754,0.000392,3]
[320789395,1711558233185,-7578.1433528,0.000392,2]
[320789396,1711558233195,-163.55868509,0.000392,2]
[320789397,1711558233204,-174.70402619,0.000392,2]
[320789398,1711558233214,-426.87623736,0.000392,2]
[320789399,1711558233224,-716.70823816,0.000392,30]
[320789400,1711558233235,-150.97,0.0003927,15]
[320789401,1711558233244,-157.0,0.0003927,15]
[320789402,1711558233254,-2209.0,0.0003927,15]
[320789403,1711558233264,-164.71,0.0003927,15]
[320789404,1711558233274,-741.0,0.0003927,15]
[320789405,1711558233284,-4970.0,0.0003927,15]
[320789406,1711558233294,-259.0,0.0003927,15]
[320789407,1711558233303,-150.5,0.0003928,15]
[320789408,1711558233312,-157.0,0.0003928,15]
[320789409,1711558233321,-150.78,0.0003928,15]
[320789410,1711558233331,-2209.0,0.0003928,15]
[320789411,1711558233340,-150.5,0.0003928,15]
[320789412,1711558233351,-741.0,0.0003928,15]
[320789413,1711558233361,-4970.0,0.0003928,15]
[320789414,1711558233370,-259.0,0.0003928,15]
[320789415,1711558233380,-150.5,0.0003929,15]
[320789416,1711558233389,-157.0,0.0003929,15]
[320789417,1711558233398,-150.85,0.0003929,15]
[320789418,1711558233407,-152.41,0.0003929,15]
[320789419,1711558233417,-150.5,0.0003929,15]
[320789420,1711558233426,-150.92,0.0003929,15]
[320789421,1711558233435,-2209.0,0.0003929,15]
[320789422,1711558233444,-741.0,0.0003929,15]
[320789423,1711558233454,-150.73,0.0003929,15]
[320789424,1711558233463,-138.29310937,0.0003929,15]
[320789425,1711558233481,-12.20689063,0.0003929,15]
[320789426,1711558233491,-150.71,0.0003929,15]
[320789427,1711558233502,-4970.0,0.0003929,15]
[320789428,1711558233514,-259.0,0.0003929,15]
[320789429,1711558233524,-200.86675279,0.0003929,2]
[320789430,1711558233533,-200.86675279,0.0003929,2]
[320789431,1711558233543,-200.86675279,0.0003929,2]
[320789432,1711558233552,-644.44212353,0.00039298,10]
[320789433,1711558233562,-1893.7257597,0.00039298,4]
[320789434,1711558233571,-679.70928386,0.00039298,4]
[320789435,1711558233580,-2932.19148249,0.00039298,2]
[320789436,1711558233589,-200.0,0.00039298,2]
[320789437,1711558233598,-957.25175318,0.00039298,5]
[320789438,1711558233608,-2770.51065683,0.00039299,4]
[320789439,1711558233617,-6874.54979241,0.00039299,4]
[320789440,1711558233626,-169.45,0.000393,2]
[320789441,1711558233635,-242144.47490005,0.000393,30]
[320789452,1711558238219,-328.08188058,0.00037397,2]
[320789456,1711558238336,-274.22,0.00037397,2]
[320789457,1711558238450,-2549.57100954,0.00037397,2]
[320789458,1711558238462,-1394.7289095,0.00037397,2]
[320789459,1711558238508,-2405.60820038,0.00037397,2]
[320789460,1711558238519,-245000.0,0.00039097,2]
[320789461,1711558238529,-49574.08491741,0.00039297,2]
[320789462,1711558238538,-3261948.37093135,0.000393,30]
[320789463,1711558238548,-438.23,0.000393,7]
[320789464,1711558238559,-460.07,0.000393,7]
[320789465,1711558238569,-338.75,0.000393,7]
[320789466,1711558238578,-2776.07484,0.0003944,2]
[320789467,1711558238588,-1000.0,0.00039484,30]
[320789468,1711558238598,-1450.58397,0.00039561,2]
[320789469,1711558238608,-197.81946936,0.00039589,4]
[320789470,1711558238618,-155.0,0.00039589,4]
[320789471,1711558238629,-1925.49538494,0.00039589,4]
[320789472,1711558238641,-15031.08953581,0.00039683,12]
[320789473,1711558238651,-152.6744574,0.00039693,5]
[320789474,1711558238661,-2000.0,0.0003984,2]
[320789475,1711558238670,-200.0,0.0003984,2]
[320789476,1711558238680,-774.43530045,0.00039844,4]
[320789477,1711558238689,-655.07,0.00039925,15]
[320789478,1711558238699,-1450.58398,0.00039935,2]
[320789479,1711558238709,-23642.90495713,0.0004,4]
[320789480,1711558238720,-192.22165366,0.0004,2]
[320789481,1711558238729,-300.69139908,0.0004,30]
[320789483,1711558238740,-2385.94542606,0.0004,120]
[320789485,1711558238750,-187539.09301742,0.0004,2]
[320789487,1711558238760,-573.64,0.00040067,2]
[320789489,1711558238769,-152.6744574,0.00040186,7]
[320789491,1711558238780,-295.82,0.00040197,2]
[320789493,1711558238791,-1000.0,0.000406,15]
[320789495,1711558238801,-152.6744574,0.00040679,9]
[320789497,1711558238811,-180.0,0.0004072,2]
[320789499,1711558238823,-8432.16717935,0.00040782,14]
[320789501,1711558238834,-1000.0,0.000409,15]
[320789503,1711558238843,-8181.03361626,0.00040982,2]
[320789505,1711558238853,-8221.8473434,0.00040992,2]
[320789507,1711558238864,-8330.42679496,0.00041,4]
[320789510,1711558238875,-600.0,0.00041,3]
[320789512,1711558238887,-159.78,0.00041096,2]
[320789514,1711558238901,-1500.0,0.00041096,120]
[320789516,1711558238910,-183.0,0.00041096,2]
[320789518,1711558238920,-1516.0,0.000411,2]
[320789520,1711558238929,-152.6744574,0.00041171,11]
[320789522,1711558238939,-384.33356235,0.00041364,10]
[320789524,1711558238949,-150.0,0.00041387,60]
[320789526,1711558238958,-221.20509768,0.00041387,60]
[320789528,1711558238968,-150.0,0.00041599,60]
[320789530,1711558238978,-152.6744574,0.00041664,13]
[320789532,1711558238987,-302.01682552,0.00041928,2]
[320789534,1711558238996,-2776.07485,0.0004194,11]
[320789536,1711558239006,-240.0,0.00041967,120]
[320789538,1711558239015,-338.75,0.00042,7]
[320789540,1711558239025,-174.55260402,0.00042043,2]
[320789542,1711558239034,-1000.0,0.00042119,2]
[320789544,1711558239043,-152.6744574,0.00042157,14]
[320789546,1711558239052,-320.0,0.00042195,120]
[320789548,1711558239061,-573.64,0.00042331,2]
[320789550,1711558239070,-8432.16717935,0.00042364,16]
[320789552,1711558239080,-351.0,0.00042466,2]
[320789554,1711558239089,-152.6744574,0.0004265,16]
[320789556,1711558239098,-655.07,0.00042665,15]
[320789558,1711558239107,-438.23,0.000427,7]
[320789560,1711558239117,-460.07,0.000427,7]
[320789562,1711558239127,-8181.03361626,0.00042867,2]
[320789564,1711558239136,-8221.8473434,0.00042887,2]
[320789566,1711558239145,-295.82,0.00042936,2]
[320789568,1711558239155,-650.0,0.00043,3]
[320789570,1711558239164,-716.70823815,0.00043142,36]
[320789573,1711558239180,-152.6744574,0.00043143,18]
[320789575,1711558239196,-500.0,0.0004336,60]
[320789577,1711558239206,-150.0,0.00043523,120]
[320789580,1711558239216,-384.33356235,0.00043631,11]
[320789582,1711558239226,-152.6744574,0.00043636,20]
[320789584,1711558239236,-6073.76741742,0.00043908,30]
[320789586,1711558239247,-897.4075057,0.00043908,4]
[320789588,1711558239256,-8432.16717935,0.00043945,18]
[320789590,1711558239266,-338.75,0.000441,7]
[320789592,1711558239276,-150.0,0.00044115,120]
[320789594,1711558239286,-152.6744574,0.00044128,22]
[320789596,1711558239296,-2776.07484,0.0004444,23]
[320789598,1711558239306,-573.64,0.00044595,2]
[320789601,1711558239316,-152.6744574,0.00044621,24]
[320789603,1711558239326,-302.01682552,0.00044658,2]
[320789605,1711558239338,-8181.03361626,0.00044753,2]
[320789607,1711558239348,-8221.8473434,0.00044783,2]
[320789609,1711558239358,-460.07,0.000448,7]
[320789611,1711558239368,-174.55260402,0.00044885,2]
[320789613,1711558239377,-438.23,0.000449,7]
[320789615,1711558239387,-2000.0,0.00045,30]
[320789617,1711558239397,-328.95124766,0.00045,4]
[320789619,1711558239407,-22038.94073476,0.00045,4]
[320789621,1711558239416,-700.0,0.00045,3]
[320789665,1711558239795,-500.0,0.00045,14]
[320789669,1711558239825,-152.6744574,0.00045114,26]
[320789671,1711558239836,-655.07,0.00045405,15]
[320789673,1711558239848,-8432.16717935,0.00045527,20]
[320789675,1711558239858,-152.6744574,0.00045607,27]
[320789677,1711558239869,-150.0,0.00045676,120]
[320789679,1711558239879,-384.33356235,0.00045898,12]
[320789681,1711558239892,-165.93371293,0.00046025,120]
[320789683,1711558239902,-152.6744574,0.000461,29]
[320789685,1711558239912,-338.75,0.000464,7]
[320789687,1711558239922,-151.79,0.00046512,2]
[320789689,1711558239932,-351.0,0.00046575,2]
[320789692,1711558239943,-152.6744574,0.00046593,31]
[320789694,1711558239952,-240.0,0.0004663,120]
[320789696,1711558239962,-8181.03361626,0.00046638,2]
[320789698,1711558239971,-8221.8473434,0.00046678,2]
[320789699,1711558239981,-1000.0,0.00046799,2]
[320789702,1711558239991,-573.64,0.00046859,2]
[320789704,1711558240001,-320.0,0.00046884,120]
[320789706,1711558240011,-2776.07485,0.0004694,35]
[320789708,1711558240021,-161.39,0.00046986,2]
[320789711,1711558240031,-460.07,0.00047,7]
[320789714,1711558240040,-750.0,0.00047,3]
[320789717,1711558240051,-859.57814569,0.00047047,2]
[320789720,1711558240061,-716.70823815,0.00047084,42]
[320789723,1711558240071,-152.6744574,0.00047085,33]
[320789725,1711558240080,-8432.16717935,0.00047109,22]
[320789727,1711558240090,-500.0,0.000473,90]
[320789729,1711558240099,-302.01682552,0.00047389,2]
[320789731,1711558240109,-150.0,0.00047402,120]
[320789733,1711558240118,-7578.14335278,0.00047496,2]
[320789735,1711558240127,-426.87623736,0.00047496,2]
[320789737,1711558240137,-438.23,0.000475,7]
[320789740,1711558240147,-150.0,0.00047555,120]
[320789743,1711558240156,-152.6744574,0.00047578,35]
[320789746,1711558240166,-387.82,0.00047619,2]
[320789748,1711558240175,-169.45,0.00047721,2]
[320789750,1711558240185,-174.55260402,0.00047728,2]
[320789752,1711558240194,-338.75,0.000478,7]
[320789754,1711558240204,-100000.0,0.00047919,7]
[320789756,1711558240214,-10000.0,0.00048,14]
[320789758,1711558240223,-152.6744574,0.00048071,37]
[320789760,1711558240233,-655.07,0.00048144,15]
[320789762,1711558240242,-384.33356235,0.00048166,13]
[320789764,1711558240251,-490.04,0.00048495,120]
[320789766,1711558240261,-8181.03361626,0.00048523,2]
[320789768,1711558240270,-152.6744574,0.00048564,39]
[320789770,1711558240279,-8221.8473434,0.00048573,2]
[320789772,1711558240288,-6952.21,0.00048629,120]
[320789774,1711558240298,-8432.16717935,0.00048691,24]
[320789777,1711558240311,-1004.0,0.000487,117]
[320789779,1711558240321,-19833.06170046,0.000487,2]
[320789781,1711558240332,-1382.689,0.00048758,2]
[320789783,1711558240342,-458.0,0.00048758,2]
[320789785,1711558240352,-2420.0,0.00048758,2]
[320789787,1711558240361,-961.817,0.00048758,2]
[320789789,1711558240370,-1244.0,0.00048758,2]
[320789791,1711558240380,-1225.0,0.00048758,2]
[320789793,1711558240390,-537.0,0.00048758,2]
[320789795,1711558240399,-278.0,0.00048758,2]
[320789797,1711558240409,-802.0,0.00048758,2]
[320789799,1711558240419,-604.0,0.00048758,2]
[320789801,1711558240428,-433.0,0.00048758,2]
[320789803,1711558240437,-1267.0,0.00048758,2]
[320789805,1711558240447,-150.0,0.00048758,2]
[320789807,1711558240457,-1138.0,0.00048758,2]
[320789808,1711558240467,-2959.0,0.00048758,2]
[320789809,1711558240477,-1461.0,0.00048758,2]
[320789810,1711558240488,-396.0,0.00048758,2]
[320789811,1711558240498,-2423.0,0.00048758,2]
[320789812,1711558240507,-1626.0,0.00048758,2]
[320789813,1711558240518,-213.0,0.00048758,2]
[320789814,1711558240527,-258.0,0.00048758,2]
[320789815,1711558240538,-192.0,0.00048758,2]
[320789816,1711558240549,-4771.0,0.00048758,2]
[320789817,1711558240559,-22457.772,0.00048758,2]
[320789818,1711558240569,-5676.0,0.00048758,2]
[320789819,1711558240579,-1176.0,0.00048758,2]
[320789820,1711558240589,-2449.0,0.00048758,2]
[320789821,1711558240598,-1046.0,0.00048758,2]
[320789822,1711558240608,-150.0,0.00048797,30]
[320789823,1711558240617,-32594.04303745,0.00048798,10]
[320789824,1711558240627,-150.0,0.00048802,120]
[320789825,1711558240637,-10000.0,0.00048854,30]
[320789826,1711558240648,-3303.34437691,0.00049,2]
[320789827,1711558240657,-901.27,0.00049,5]
[320789828,1711558240667,-12505.0,0.00049,7]
[320789829,1711558240677,-460.07,0.00049,7]
[320789830,1711558240687,-800.0,0.00049,3]
[320789831,1711558240697,-2567.61641663,0.00049,120]
[320789832,1711558240707,-152.6744574,0.00049057,41]
[320789833,1711558240716,-573.64,0.00049123,2]
[320789834,1711558240727,-7665.45,0.00049154,2]
[320789835,1711558240737,-5681.32,0.00049154,45]
[320789836,1711558240746,-12954.78,0.00049154,2]
[320789837,1711558240756,-197.0,0.000493,2]
[320789838,1711558240766,-1250.0,0.000493,2]
[320789839,1711558240775,-750.0,0.000493,2]
[320789840,1711558240784,-2000.0,0.00049315,30]
[320789841,1711558240796,-1000.0,0.00049315,60]
[320789842,1711558240806,-253.6076542,0.00049315,30]
[320789843,1711558240816,-3073.0,0.00049315,120]
[320789844,1711558240826,-3119.0,0.00049315,120]
[320789845,1711558240836,-2776.07484,0.0004944,47]
[320789846,1711558240850,-438.23,0.000495,7]
[320789847,1711558240861,-152.6744574,0.0004955,42]
[320789848,1711558240871,-2000.0,0.00049589,30]
[320789849,1711558240882,-151.0,0.00049673,2]
[320789850,1711558240893,-322.065226,0.00049688,73]
[320789851,1711558240906,-338.75,0.000497,7]
[320789852,1711558240916,-150.0,0.00049701,30]
[320789853,1711558240925,-150.0,0.00049838,120]
[320789854,1711558240935,-2000.0,0.00049863,30]
[320789855,1711558240945,-2641.26513815,0.0005,30]
[320789856,1711558240955,-5000.0,0.0005,30]
[320789857,1711558240965,-47618.63108778,0.0005,2]
[320789858,1711558240974,-610.0923342,0.0005,3]
[320789859,1711558240984,-500.0,0.0005,7]
[320789860,1711558240993,-41350.0,0.0005,120]
[320789861,1711558241003,-7137.00982734,0.0005,14]
[320789862,1711558241013,-430.19799114,0.0005,28]
[320789863,1711558241023,-3878.0,0.0005,13]
[320789864,1711558241033,-19192.93017925,0.0005,30]
[320789865,1711558241043,-155.0,0.0005,2]
[320789866,1711558241053,-1900.0,0.0005,70]
[320789867,1711558241063,-150.0,0.0005,30]
[320789868,1711558241073,-421.0110837,0.0005,30]
[320789869,1711558241083,-2000.0,0.00050026,10]
[320789870,1711558241092,-152.6744574,0.00050042,44]
[320789871,1711558241102,-302.01682552,0.00050119,2]
[320789872,1711558241112,-2000.0,0.00050136,30]
[320789873,1711558241121,-4000.0,0.00050137,120]
[320789874,1711558241132,-1037.0,0.00050182,7]
[320789875,1711558241142,-8432.16717935,0.00050273,26]
[320789876,1711558241151,-8181.03361626,0.00050408,2]
[320789877,1711558241161,-2000.0,0.0005041,30]
[320789878,1711558241170,-384.33356235,0.00050433,14]
[320789879,1711558241180,-302.0,0.00050508,4]
[320789880,1711558241189,-152.6744574,0.00050535,46]
[320789881,1711558241199,-1159.29,0.00050546,10]
[320789882,1711558241209,-150.0,0.00050605,30]
[320789883,1711558241218,-2000.0,0.00050684,30]
[320789884,1711558241228,-1000.0,0.00050684,60]
[320789885,1711558241237,-351.0,0.00050685,2]
[320789886,1711558241249,-655.07,0.00050884,120]
[320789887,1711558241260,-4848.1063767,0.000509,120]
[320789888,1711558241270,-4848.10637665,0.000509,120]
[320789889,1711558241279,-4848.10637665,0.000509,120]
[320789890,1711558241289,-4848.10637665,0.000509,120]
[320789891,1711558241298,-4848.10637665,0.000509,120]
[320789892,1711558241307,-4848.10637665,0.000509,120]
[320789893,1711558241316,-4848.10637665,0.000509,120]
[320789894,1711558241326,-4848.10637665,0.000509,120]
[320789895,1711558241337,-4848.10637665,0.000509,120]
[320789896,1711558241346,-4848.10637665,0.000509,120]
[320789897,1711558241357,-4848.10637665,0.000509,120]
[320789898,1711558241366,-4848.10637665,0.000509,120]
[320789899,1711558241376,-4848.10637665,0.000509,120]
[320789900,1711558241387,-4848.10637665,0.000509,120]
[320789901,1711558241398,-4848.10637665,0.000509,120]
[320789902,1711558241408,-4848.10637665,0.000509,120]
[320789903,1711558241417,-4848.10637665,0.000509,120]
[320789904,1711558241427,-4848.10637665,0.000509,120]
[320789905,1711558241436,-4848.10637665,0.000509,120]
[320789906,1711558241446,-4848.10637665,0.000509,120]
[320789907,1711558241456,-2000.0,0.00050958,30]
[320789908,1711558241466,-637.05,0.00050958,60]
[320789909,1711558241476,-4260.32816524,0.00051,120]
[320789910,1711558241486,-734.92930057,0.00051,14]
[320789911,1711558241496,-850.0,0.00051,3]
[320789912,1711558241505,-300.78474529,0.00051,2]
[320789913,1711558241515,-716.70823815,0.00051025,48]
[320789914,1711558241525,-152.6744574,0.00051028,48]
[320789915,1711558241535,-1667.50820547,0.000511,30]
[320789916,1711558241545,-22460.87192228,0.000511,7]
[320789917,1711558241555,-17591.0,0.000511,120]
[320789918,1711558241568,-1207.03,0.00051232,30]
[320789919,1711558241578,-500.0,0.0005125,120]
[320789920,1711558241587,-240.0,0.00051293,120]
[320789921,1711558241597,-604.0,0.00051357,7]
[320789922,1711558241607,-573.64,0.00051387,2]
[320789923,1711558241616,-1000.0,0.00051479,120]
[320789924,1711558241626,-500.0,0.00051505,90]
[320789925,1711558241636,-500.0,0.00051505,90]
[320789926,1711558241646,-637.05,0.00051506,60]
[320789927,1711558241656,-150.0,0.00051508,30]
[320789928,1711558241666,-152.6744574,0.00051521,50]
[320789929,1711558241676,-320.0,0.00051572,120]
[320789930,1711558241686,-460.07,0.000516,7]
[320789931,1711558241696,-1381.0,0.00051758,120]
[320789932,1711558241706,-458.0,0.00051758,120]
[320789933,1711558241715,-2420.0,0.00051758,120]
[320789934,1711558241725,-961.0,0.00051758,120]
[320789935,1711558241735,-1225.0,0.00051758,120]
[320789936,1711558241745,-535.0,0.00051758,120]
[320789937,1711558241755,-604.0,0.00051758,120]
[320789938,1711558241765,-206.64,0.00051758,120]
[320789939,1711558241775,-1267.0,0.00051758,120]
[320789940,1711558241785,-1029.874,0.00051758,120]
[320789941,1711558241795,-2939.536,0.00051758,120]
[320789942,1711558241805,-1461.0,0.00051758,120]
[320789943,1711558241817,-396.0,0.00051758,120]
[320789944,1711558241827,-2423.0,0.00051758,120]
[320789945,1711558241837,-1626.0,0.00051758,120]
[320789946,1711558241847,-213.0,0.00051758,2]
[320789947,1711558241857,-4771.0,0.00051758,120]
[320789948,1711558241867,-1176.0,0.00051758,120]
[320789949,1711558241877,-2443.0,0.00051758,120]
[320789950,1711558241888,-1046.0,0.00051758,120]
[320789951,1711558241899,-500.0,0.00051779,90]
[320789952,1711558241909,-150.0,0.000518,10]
[320789953,1711558241919,-8432.16717935,0.00051855,28]
[320789954,1711558241930,-338.75,0.000519,7]
[320789955,1711558241939,-198927.63034,0.000519,30]
[320789956,1711558241950,-249.07051585,0.00051913,10]
[320789957,1711558241959,-2776.07485,0.0005194,58]
[320789958,1711558241970,-2348.57991799,0.00051943,10]
[320789959,1711558241980,-2453.93463849,0.00051964,10]
[320789960,1711558241989,-1648.28868604,0.00051981,10]
[320789961,1711558241999,-243.70899005,0.0005199,120]
[320789962,1711558242008,-1704.65878204,0.00051995,10]
[320789963,1711558242018,-253.03202787,0.00052,120]
[320789964,1711558242027,-5777.01161238,0.00052,120]
[320789965,1711558242036,-330.0,0.00052,3]
[320789966,1711558242047,-2500.01,0.00052,120]
[320789967,1711558242057,-2499.98,0.00052,120]
[320789968,1711558242066,-5000.0,0.00052,120]
[320789969,1711558242076,-29148.13710744,0.00052,30]
[320789970,1711558242086,-2437.42170417,0.00052,4]
[320789971,1711558242096,-438.23,0.00052,7]
[320789972,1711558242108,-150.0,0.00052,30]
[320789973,1711558242117,-15000.0,0.00052,120]
[320789974,1711558242128,-2200.0166858,0.00052,120]
[320789975,1711558242138,-152.6744574,0.00052014,52]
[320789976,1711558242149,-500.0,0.00052053,90]
[320789977,1711558242158,-500.0,0.00052053,90]
[320789978,1711558242168,-3685.55096896,0.00052054,120]
[320789979,1711558242178,-637.05,0.00052054,60]
[320789980,1711558242188,-605.79,0.00052054,120]
[320789981,1711558242198,-605.79,0.00052054,120]
[320789982,1711558242208,-605.79,0.00052054,120]
[320789983,1711558242217,-605.79,0.00052054,120]
[320789984,1711558242309,-605.79,0.00052054,120]
[320789985,1711558242319,-605.79,0.00052054,120]
[320789986,1711558242328,-605.79,0.00052054,120]
[320789987,1711558242338,-605.79,0.00052054,120]
[320789988,1711558242348,-605.79,0.00052054,120]
[320789989,1711558242358,-605.79,0.00052054,120]
[320789990,1711558242367,-605.79,0.00052054,120]
[320789991,1711558242377,-605.79,0.00052054,120]
[320789992,1711558242387,-605.79,0.00052054,120]
[320789993,1711558242397,-605.79,0.00052054,120]
[320789994,1711558242407,-605.79,0.00052054,120]
[320789995,1711558242416,-605.79,0.00052054,120]
[320789996,1711558242426,-605.79,0.00052054,120]
[320789997,1711558242435,-605.79,0.00052054,120]
[320789998,1711558242445,-605.79,0.00052054,120]
[320789999,1711558242466,-605.79,0.00052054,120]
[320790000,1711558242475,-605.79,0.00052054,120]
[320790001,1711558242485,-605.79,0.00052054,120]
[320790002,1711558242495,-605.79,0.00052054,120]
[320790003,1711558242505,-605.79,0.00052054,120]
[320790004,1711558242515,-3000.0,0.00052054,120]
[320790005,1711558242525,-1000.0,0.00052054,60]
[320790006,1711558242535,-2371.53,0.00052054,2]
[320790007,1711558242544,-5000.0,0.000521,120]
[320790008,1711558242554,-150.0,0.00052143,120]
[320790009,1711558242564,-3000.0,0.00052191,120]
[320790010,1711558242574,-5000.0,0.000522,120]
[320790011,1711558242584,-8181.03361626,0.00052294,2]
[320790012,1711558242593,-5000.0,0.000523,120]
[320790013,1711558242603,-17591.0,0.000523,120]
[320790014,1711558242613,-150.0,0.000523,11]
[320790015,1711558242623,-2775.92,0.00052328,120]
[320790016,1711558242633,-5000.0,0.000524,120]
[320790017,1711558242643,-150.0,0.00052412,30]
[320790018,1711558242653,-151.0,0.00052493,10]
[320790019,1711558242662,-5000.0,0.000525,120]
[320790020,1711558242672,-152.6744574,0.00052507,54]
[320790021,1711558242681,-520.0,0.00052576,120]
[320790022,1711558242691,-5000.0,0.000526,120]
[320790023,1711558242700,-500.0,0.00052601,90]
[320790024,1711558242710,-500.0,0.00052601,90]
[320790025,1711558242719,-637.05,0.00052602,60]
[320790026,1711558242729,-558.0,0.00052603,120]
[320790027,1711558242738,-537.0,0.00052603,120]
[320790028,1711558242748,-1208.0,0.00052657,30]
[320790029,1711558242757,-384.33356235,0.000527,14]
[320790030,1711558242767,-5000.0,0.000527,120]
[320790031,1711558242776,-150.0,0.000527,11]
[320790032,1711558242785,-150.0,0.000527,11]
[320790033,1711558242795,-5000.0,0.000528,120]
[320790034,1711558242806,-150.0,0.000528,11]
[320790035,1711558242817,-150.0,0.00052812,120]
[320790036,1711558242827,-520.0,0.00052849,120]
[320790037,1711558242837,-302.01682552,0.00052849,2]
[320790038,1711558242847,-165.93371293,0.0005285,120]
[320790039,1711558242857,-558.0,0.00052876,120]
[320790040,1711558242866,-537.0,0.00052876,120]
[320790041,1711558242876,-2371.53,0.00052876,120]
[320790042,1711558242888,-5000.0,0.000529,120]
[320790043,1711558242899,-460.07,0.000529,30]
[320790044,1711558242909,-150.83655512,0.00052911,10]
[320790045,1711558242919,-155.71933176,0.00052944,10]
[320790046,1711558242930,-155.04492602,0.00052982,10]
[320790047,1711558242939,-152.0,0.00052982,3]
[320790048,1711558242949,-160.04049193,0.00052984,10]
[320790049,1711558242959,-152.6744574,0.00052999,56]
[320790050,1711558242969,-5000.0,0.00053,120]
[320790051,1711558242979,-2000.0,0.00053,30]
[320790052,1711558242989,-500.0,0.00053,120]
[320790053,1711558242999,-15000.0,0.00053,120]
[320790054,1711558243010,-900.0,0.00053,3]
[320790055,1711558243019,-6804.99596524,0.00053,120]
[320790056,1711558243029,-150.42843072,0.00053039,60]
[320790057,1711558243039,-216.45827693,0.00053041,60]
[320790058,1711558243049,-159.796,0.00053048,120]
[320790059,1711558243058,-159.797,0.00053048,120]
[320790060,1711558243068,-159.797,0.00053048,120]
[320790061,1711558243079,-159.797,0.00053048,120]
[320790062,1711558243089,-159.797,0.00053048,120]
[320790063,1711558243099,-1889.161,0.00053048,120]
[320790064,1711558243109,-1889.162,0.00053048,120]
[320790065,1711558243119,-1889.161,0.00053048,120]
[320790066,1711558243129,-1889.162,0.00053048,120]
[320790067,1711558243138,-1889.161,0.00053048,120]
[320790068,1711558243148,-5000.0,0.000531,120]
[320790069,1711558243157,-338.75,0.000531,7]